[Event "LV Capablanca Memorial Elite 2022"]
[Site "La Habana"]
[Date "2022.04.19"]
[Round "1.1"]
[White "Ganguly, Surya Shekhar"]
[Black "Yilmaz, Mustafa"]
[Result "1/2-1/2"]
[ECO "B90"]
[WhiteElo "2627"]
[BlackElo "2627"]
[Annotator "TA"]
[PlyCount "65"]
[EventDate "2022.04.20"]
[EventType "tourn"]
[EventCountry "CUB"]
[SourceTitle "playchess.com"]
[Source "ChessBase"]
[SourceQuality "1"]
[TimeControl "40/5400+30:1800+30"]

{[%evp 23,65,20,31,21,22,24,10,0,0,0,13,16,0,0,18,8,18,11,18,0,0,0,0,0,0,0,0,0,0,0,0,0,0,0,0,0,0,0,0,2,4,5,5,6]} 1. e4 {[%emt 0:00:14]} c5 {[%emt 0:00:05]} 2. Nf3 {[%emt 0:00:13]} d6 {[%emt 0:00:05]} 3. d4 {[%emt 0:00:07]} cxd4 {[%emt 0:00:04]} 4. Nxd4 {[%emt 0:00:06]} Nf6 {[%emt 0:00:04]} 5. Nc3 {[%emt 0:00:08]} a6 {[%emt 0:00:05]} 6. Be3 {[%emt 0:00:36]} e5 {[%emt 0:00:05]} 7. Nb3 {[%emt 0:00:09]} Be7 {[%emt 0:00:15]} 8. f3 {[%emt 0:00:20]} Be6 {[%emt 0:00:15]} 9. Qd2 {[%emt 0:00:32]} O-O {[%emt 0:00:13]} 10. O-O-O {[%emt 0:00:37]} Nbd7 {[%emt 0:00:08]} 11. g4 {[%emt 0:00:45][%cal Bg2g4,Bg4g5][%mdl 32]} b5 {[%emt 0:00:03]} 12. g5 {[%emt 0:00:46]} Nh5 {[%emt 0:00:04]} 13. Kb1 {[%emt 0:00:47] B90: Sicilian Najdorf: Unusual White 6th moves, 6 Be3 Ng4 and 6 Be3 e5.} Nb6 {[%emt 0:00:48]} 14. Na5 {[%emt 0:03:48] [#] Black must now prevent Nc6.} Rc8 {[%emt 0:01:04] Prevents Nc6.} 15. Nd5 {[%emt 0:01:10] The position is equal. is now debated instead of 15.a3.} ({Don't play} 15. Nb7 Qc7 16. Na5 (16. Nxd6 $2 Rcd8 $19) 16... Nf4 17. Bxf4 exf4 $17) 15... Nxd5 {[%emt 0:01:15]} 16. exd5 {[%emt 0:00:08]} Bxd5 {[%emt 0:00:19]} 17. Qxd5 {[%emt 0:00:06]} Qxa5 {[%emt 0:00:05]} 18. c4 {[%emt 0:02:14]} Nf4 {[%emt 0:02:56]} 19. Bxf4 {[%emt 0:00:28]} exf4 {[%emt 0:00:06]} 20. h4 {[%emt 0:01:30]} Qa4 {[%emt 0:00:59]} 21. Bd3 {[%emt 0:00:25] And now h5 would win.} bxc4 {[%emt 0:03:17]} 22. Qe4 {[%emt 0:00:24][%csl Gd3,LRe7,LRf4,LRh7][%cal Re4h7]} g6 {[%emt 0:00:26]} 23. Bc2 {[%emt 0:00:07] [#]} Qe8 $146 {[%emt 0:00:09]} ({Predecessor:} 23... Qd7 24. h5 Qe6 25. hxg6 hxg6 26. Qxf4 Qe5 27. Qh4 Qg7 28. Rd2 Rc5 29. f4 f6 30. Rdh2 fxg5 31. Qe1 Bf6 32. Rh6 Qb7 33. Qe6+ {1-0 (33) Dominguez Perez,L (2758)-Vachier Lagrave,M (2751) Saint Louis 2021}) 24. Rde1 {[%emt 0:00:14]} Rc7 {[%emt 0:00:35]} 25. h5 $1 {[%emt 0:00:55] Hoping for hxg6.} d5 {[%emt 0:02:38]} 26. Qe5 {[%emt 0:16:00]} Qc6 {[%emt 0:00:13]} 27. hxg6 {[%emt 0:00:45]} fxg6 {[%emt 0:00:17]} 28. Rh6 {[%emt 0:00:41][%cal Oc2g6] Strongly threatening Bxg6!} Qd6 {[%emt 0:01:16] ...Qxe5 is the strong threat.} 29. Bxg6 {[%emt 0:00:53][%mdl 64] [#] Pin} Qxe5 {[%emt 0:00:20]} 30. Bxh7+ {[%emt 0:00:09]} Kg7 {[%emt 0:00:40]} 31. Rxe5 {aiming for Bf5. Really sharp!} Bxg5 $1 {[%emt 0:09:56]} 32. Rh2 Bf6 {[%emt 0:16:29]} 33. Rxd5 {[%emt 0:10:02] An even fight not without its subleties.  Weighted Error Value: White=0.02 (flawless) /Black=0.01 (flawless)} 1/2-1/2

[Event "LV Capablanca Memorial Elite 2022"]
[Site "La Habana"]
[Date "2022.04.19"]
[Round "1.2"]
[White "Quesada Perez, Yasser"]
[Black "Durarbayli, Vasif"]
[Result "1/2-1/2"]
[ECO "B51"]
[WhiteElo "2568"]
[BlackElo "2615"]
[Annotator "TA"]
[PlyCount "57"]
[EventDate "2022.04.20"]
[EventType "tourn"]
[EventCountry "CUB"]
[SourceTitle "playchess.com"]
[Source "ChessBase"]
[SourceQuality "1"]
[TimeControl "40/5400+30:1800+30"]

{[%evp 9,57,20,22,20,20,20,21,14,14,17,12,37,32,40,20,35,34,30,66,0,-8,-29,-41,-23,-40,-41,-39,-64,-52,-52,-58,-55,-25,-47,-57,-54,-32,-50,-6,-17,-8,-51,-31,-7,-8,0,5,-8,0,0]} 1. e4 {[%emt 0:00:06]} c5 {[%emt 0:00:23]} 2. Nf3 {[%emt 0:00:10]} d6 {[%emt 0:00:07]} 3. Bb5+ {[%emt 0:00:13]} Nd7 {[%emt 0:00:11]} 4. a4 {[%emt 0:00:11]} a6 {[%emt 0:05:51]} 5. Be2 {[%emt 0:00:18]} Ngf6 {[%emt 0:01:20]} 6. Nc3 {[%emt 0:00:16] B51: Sicilian: Moscow Variation (3 Bb5+) without 3...Bd7.} b6 {[%emt 0:02:41]} 7. d4 {[%emt 0:01:01]} cxd4 {[%emt 0:00:08]} 8. Qxd4 {[%emt 0:00:09]} Bb7 {[%emt 0:01:05]} 9. O-O {[%emt 0:01:32]} e5 {[%emt 0:03:03]} 10. Qe3 {[%emt 0:01:34]} Rc8 {[%emt 0:02:21]} 11. Nd2 {[%emt 0:01:57]} Be7 {[%emt 0:02:17]} 12. Rd1 {[%emt 0:04:25]} O-O {[%emt 0:06:05]} 13. Nc4 {[%emt 0:02:29] [#]} Nc5 $146 {[%emt 0:03:10][%cal Rf6e4]} ({Predecessor:} 13... Qc7 14. b3 Nc5 15. Bf3 Ne6 16. Ba3 Nd4 17. Rxd4 exd4 18. Qxd4 Nd7 19. Nd5 Bxd5 20. Qxd5 {1-0 (50) Alsina Leal,D (2462)-Verstraeten,R (2365) El Prat de Llobregat 2019}) 14. Bd3 {[%emt 0:33:24] &Bianco is more active.} ({Better is} 14. f3 $14) 14... Nxd3 {[%emt 0:24:43]} 15. Qxd3 {[%emt 0:02:30] [#]} Nxe4 {[%emt 0:03:46]} 16. Nxe4 {[%emt 0:00:26]} d5 {[%emt 0:00:08]} 17. Nxe5 {[%emt 0:02:01] aiming for Ng3.} dxe4 {[%emt 0:00:09]} 18. Qxd8 {[%emt 0:07:50]} Rfxd8 {[%emt 0:00:13]} 19. Rxd8+ {[%emt 0:00:56]} Bxd8 {[%emt 0:02:01] A strong pair of Bishops.} 20. c3 $1 {[%emt 0:01:55]} Rc5 {[%emt 0:06:41]} (20... f6 $5 {[%cal Rf6e5]} 21. Ng4 Bc7 $17) 21. f4 {[%emt 0:02:30]} f6 {[%emt 0:04:56]} 22. Ng4 {[%emt 0:00:35]} Bc7 {[%emt 0:02:02]} 23. g3 {[%emt 0:03:46]} h5 {[%emt 0:04:32]} 24. Ne3 {[%emt 0:03:57]} h4 {[%emt 0:00:55]} 25. Kg2 {[%emt 0:08:39]} hxg3 {[%emt 0:03:19]} 26. hxg3 {[%emt 0:00:01]} g5 {[%emt 0:00:59] The position is equal.} 27. f5 {[%emt 0:00:17]} Rc6 {[%emt 0:01:19]} 28. Ng4 {[%emt 0:02:25]} Bc8 {[%emt 0:03:26]} 29. Be3 {[%emt 0:00:35] Weighted Error Value: White=0.10 (very precise) /Black=0.08 (flawless)} 1/2-1/2

[Event "LV Capablanca Memorial Elite 2022"]
[Site "La Habana"]
[Date "2022.04.19"]
[Round "1.3"]
[White "Albornoz Cabrera, Carlos Daniel"]
[Black "Mareco, Sandro"]
[Result "0-1"]
[ECO "D36"]
[WhiteElo "2567"]
[BlackElo "2643"]
[Annotator "TA"]
[PlyCount "66"]
[EventDate "2022.04.20"]
[EventType "tourn"]
[EventCountry "CUB"]
[SourceTitle "playchess.com"]
[Source "ChessBase"]
[SourceQuality "1"]
[TimeControl "40/5400+30:1800+30"]

{[%evp 21,66,12,19,17,17,18,24,0,14,2,11,0,0,0,20,-42,-8,-45,-43,-33,-30,-45,0,-15,-29,-18,-18,-135,-142,-439,-403,-403,-384,-538,-531,-518,-522,-489,-468,-434,-441,-1413,-1429,-1346,-1379,-1494,-1487]} 1. d4 {[%emt 0:00:03]} Nf6 {[%emt 0:00:05]} 2. c4 {[%emt 0:00:04]} e6 {[%emt 0:00:04]} 3. Nc3 {[%emt 0:00:10]} d5 {[%emt 0:00:07]} 4. cxd5 {[%emt 0:01:04]} exd5 {[%emt 0:00:06]} 5. Bg5 {[%emt 0:00:04]} c6 {[%emt 0:00:04]} 6. e3 {[%emt 0:00:09]} Be7 {[%emt 0:00:20]} 7. Bd3 {[%emt 0:00:14]} Nbd7 {[%emt 0:00:22]} 8. Qc2 {[%emt 0:01:55]} Nh5 {[%emt 0:00:06]} 9. Bxe7 {[%emt 0:00:14]} Qxe7 {[%emt 0:00:04]} 10. Nge2 {[%emt 0:02:12]} g6 {[%emt 0:01:06] 10...Nb6 is the hot move.} 11. O-O {[%emt 0:08:41]} O-O {[%emt 0:00:06]} 12. Rab1 {[%emt 0:06:09] D36: Queen's Gambit Declined: Exchange Variation: Main line (5 Bg5 c6 6 Qc2).} a5 {[%emt 0:00:25]} 13. a3 {[%emt 0:01:02]} Re8 $5 {[%emt 0:09:17][%mdl 4] [#] A promising side line.} 14. Rbe1 $146 {[%emt 0:14:20] White has an edge.} ({Predecessor:} 14. b4 axb4 15. axb4 b5 16. Bxb5 cxb5 17. Nxd5 Qe4 18. Qxe4 Rxe4 19. Nec3 Bb7 20. Nxe4 Bxd5 {1-0 (29) Fantinel,T (2375)-Siffert,A (1902) Europe Echecs INT 2021}) 14... Ndf6 {[%emt 0:18:14]} 15. Na4 {[%emt 0:04:54]} Qc7 {[%emt 0:13:26]} 16. Ng3 {[%emt 0:11:23]} Nxg3 {[%emt 0:07:23]} 17. fxg3 {[%emt 0:05:21]} Kg7 {[%emt 0:14:56]} 18. Rf4 {[%emt 0:04:08]} (18. Qf2 $11 Re6 19. Nc5) 18... Be6 {[%emt 0:00:55]} (18... Nh5 $5 {[%cal Rh5f4]} 19. Rf3 f5 $15) 19. Ref1 {[%emt 0:07:58]} (19. Qc3 $5 {[%cal Re3e4]}) 19... Nh5 {[%emt 0:06:04]} 20. R4f2 {[%emt 0:00:05]} f5 {[%emt 0:01:48]} 21. Nc5 {[%emt 0:06:39]} Bc8 {[%emt 0:06:07][%cal Be6c8,Bc8f5,Bf5d3][%mdl 32]} 22. Be2 {[%emt 0:08:24]} (22. g4 $5 fxg4 23. e4 $11) 22... Nf6 {[%emt 0:00:08]} 23. g4 {[%emt 0:00:54][%cal Rg4f5]} Rxe3 {[%emt 0:02:02]} 24. gxf5 {[%emt 0:00:16]} (24. Qc1 $11 Qe7 25. Qd2 (25. g5 Nd7 $17)) 24... Bxf5 $17 {[%emt 0:00:13]} ({Resist} 24... gxf5 25. Qd2 Qe7 26. Bd3 $14) 25. Bd3 {[%emt 0:06:00][%mdl 8192] [#] Loses the game.} ({Of course not} 25. Rxf5 gxf5 26. Qxf5 Qe7) (25. Qd2 $17 Rae8 26. h3) 25... Ng4 $1 $19 {[%emt 0:01:36][%csl Gg4,LRf2,LRh2][%cal Rc7h2]} ({Stronger than} 25... Bxd3 26. Nxd3 Ng4 27. Rf4 $11) 26. g3 {[%emt 0:01:25]} Bxd3 {[%emt 0:09:59]} 27. Rf7+ {[%emt 0:01:35]} (27. Nxd3 $142 Nxf2 28. Qxf2) 27... Qxf7 {[%emt 0:00:07] Black is clearly winning.} 28. Rxf7+ {[%emt 0:00:04]} Kxf7 {[%emt 0:00:04]} 29. Nxd3 {[%emt 0:00:03]} Rae8 {[%emt 0:00:44][%cal Oe3e1] [#] White must now prevent ...Re1+!} 30. Qd2 {[%emt 0:01:10][%cal Od3e5] Against Re1+} R8e4 {[%emt 0:00:09] Inhibits Ne5+.} 31. Nf4 {[%emt 0:03:07]} (31. Kf1 $142) 31... Re1+ {[%emt 0:01:29]} 32. Kg2 {[%emt 0:00:03]} g5 {[%emt 0:00:09]} 33. Kf3 {[%emt 0:00:37]} h5 {[%emt 0:00:14] Weighted Error Value: White=0.68/Black=0.05 (flawless)} 0-1

[Event "LV Capablanca Memorial Elite 2022"]
[Site "La Habana"]
[Date "2022.04.19"]
[Round "1.4"]
[White "Almeida Quintana, Omar"]
[Black "Ortiz Suarez, Isan Reynaldo"]
[Result "1/2-1/2"]
[ECO "D36"]
[WhiteElo "2535"]
[BlackElo "2531"]
[Annotator "TA"]
[PlyCount "40"]
[EventDate "2022.04.20"]
[EventType "tourn"]
[EventCountry "CUB"]
[SourceTitle "playchess.com"]
[Source "ChessBase"]
[SourceQuality "1"]
[TimeControl "40/5400+30:1800+30"]

{[%evp 21,40,6,55,2,13,0,17,6,7,0,9,0,14,0,8,-5,0,8,33,0,15]} 1. d4 {[%emt 0:00:05]} d5 {[%emt 0:00:10]} 2. Nf3 {[%emt 0:00:09]} Nf6 {[%emt 0:00:14]} 3. c4 {[%emt 0:00:09]} c6 {[%emt 0:00:16]} 4. Nc3 {[%emt 0:00:21]} e6 {[%emt 0:00:30]} 5. cxd5 {[%emt 0:01:15]} exd5 {[%emt 0:00:19]} 6. Qc2 {[%emt 0:00:17]} Be7 {[%emt 0:01:28]} 7. Bg5 {[%emt 0:00:35]} Nbd7 {[%emt 0:00:40]} 8. e3 {[%emt 0:00:46]} Nf8 {[%emt 0:00:57]} 9. Bd3 {[%emt 0:00:53]} Ne6 {[%emt 0:00:15]} 10. Bh4 g6 {[%emt 0:02:55]} 11. O-O {[%emt 0:01:36]} Ng7 {[%emt 0:00:00]} (11... O-O $11 {might be stronger.}) 12. Bxf6 {[%emt 0:05:58] D36: Queen's Gambit Declined: Exchange Variation: Main line (5 Bg5 c6 6 Qc2).} ({White should play} 12. b4 $14) 12... Bxf6 $11 {[%emt 0:00:00]} 13. b4 {[%emt 0:00:08]} Bg4 {[%emt 0:03:26]} 14. Nd2 {[%emt 0:01:29]} Rc8 {[%emt 0:00:52]} 15. Nb3 {[%emt 0:01:25]} O-O {[%emt 0:00:30] [#]} 16. Rac1 $146 {[%emt 0:00:35]} ({Predecessor:} 16. a4 Be7 17. Nc5 b6 18. Na6 Bf5 19. Rfc1 Re8 20. Qd2 Be6 21. Ne2 Nh5 22. Ra2 {½-½ (51) Nenezic,M (2397)-Starcevic,G (2175) Belgrade 2013}) 16... Bf5 {[%emt 0:01:17]} 17. Rfd1 {[%emt 0:00:40]} Qd6 {[%emt 0:01:10]} 18. a3 {[%emt 0:02:39]} Bxd3 {[%emt 0:01:10]} 19. Qxd3 {[%emt 0:00:09]} Nf5 {[%emt 0:00:31]} 20. h3 {[%emt 0:07:47]} Ng7 {[%emt 0:01:22] Not much happened in this game.  Weighted Error Value: White=0.20 (precise) /Black=0.11 (very precise)} 1/2-1/2

[Event "LV Capablanca Memorial Elite 2022"]
[Site "La Habana"]
[Date "2022.04.19"]
[Round "1.5"]
[White "Niemann, Hans Moke"]
[Black "Quesada Perez, Luis Ernesto"]
[Result "1/2-1/2"]
[ECO "C10"]
[WhiteElo "2642"]
[BlackElo "2517"]
[Annotator "TA"]
[PlyCount "199"]
[EventDate "2022.04.20"]
[EventType "tourn"]
[EventCountry "CUB"]
[SourceTitle "playchess.com"]
[Source "ChessBase"]
[SourceQuality "1"]
[TimeControl "40/5400+30:1800+30"]

{[%evp 102,199,0,0,0,0,0,0,0,0,0,0,0,0,0,0,0,0,0,0,0,0,0,0,0,0,0,0,0,0,0,0,0,0,0,0,0,0,0,0,0,0,0,0,0,0,0,0,0,0,0,0,0,0,0,0,0,0,0,0,0,0,0,0,0,0,0,0,0,0,0,0,0,0,0,0,0,0,0,0,0,0,0,0,0,0,0,0,0,0,0,0,0,0,0,0,0,0,0,0]} 1. e4 {[%emt 0:00:04]} e6 {[%emt 0:03:41]} 2. d4 {[%emt 0:00:40]} d5 {[%emt 0:00:06]} 3. Nc3 {[%emt 0:00:56]} dxe4 {[%emt 0:00:10]} 4. Nxe4 {[%emt 0:00:20]} Nd7 {[%emt 0:00:11]} 5. Nf3 {[%emt 0:00:33]} Ngf6 {[%emt 0:00:06]} 6. Nxf6+ {[%emt 0:01:33]} Nxf6 {[%emt 0:00:04]} 7. Be3 {[%emt 0:01:25]} Bd6 {[%emt 0:00:48]} 8. Bd3 {[%emt 0:00:57]} O-O {[%emt 0:01:53]} 9. Qe2 {[%emt 0:02:55]} b6 {[%emt 0:00:30]} 10. O-O-O {[%emt 0:01:40]} Bb7 {[%emt 0:00:41]} 11. Kb1 {[%emt 0:03:50]} c5 {[%emt 0:14:16]} 12. dxc5 {[%emt 0:21:02]} bxc5 {[%emt 0:00:04]} 13. Bg5 {[%emt 0:05:04]} h6 {[%emt 0:21:13]} 14. Bh4 {[%emt 0:03:07]} Qc7 {[%emt 0:00:37]} 15. Bxf6 {[%emt 0:05:33]} gxf6 {[%emt 0:00:06]} 16. Nd2 {[%emt 0:00:31]} Rfd8 {[%emt 0:03:17]} 17. Be4 {[%emt 0:12:20]} Rab8 {[%emt 0:09:38]} 18. Bxb7 {[%emt 0:01:51]} Qxb7 {[%emt 0:00:06]} 19. Nc4 {[%emt 0:00:10]} Bf8 {[%emt 0:00:40]} 20. Rd3 {[%emt 0:01:52]} Rd7 21. Rxd7 {[%emt 0:00:30]} Rc8 {[%emt 0:00:06]} 22. Rd8 Rxd8 {[%emt 0:00:59]} 23. f3 {[%emt 0:01:15]} h5 {[%emt 0:09:06]} 24. Rd1 {[%emt 0:02:00]} Rd5 {[%emt 0:01:14]} 25. Rd3 Rxd3 {[%emt 0:00:29]} 26. Qxd3 {[%emt 0:01:50]} Qc7 {[%emt 0:02:36]} 27. Qd1 {[%emt 0:00:41]} h4 {[%emt 0:00:11]} 28. g3 {[%emt 0:03:52]} Qd7 {[%emt 0:13:47]} 29. Qg1 {[%emt 0:01:06]} Kh8 {[%emt 0:00:38]} 30. gxh4 {[%emt 0:00:44]} Qd5 {[%emt 0:00:55]} 31. a3 {[%emt 0:00:11]} Bh6 {[%emt 0:04:24]} 32. Qf1 {[%emt 0:01:13]} Qd4 {[%emt 0:08:47]} 33. Qd3 Qxd3 {[%emt 0:00:00]} 34. cxd3 {[%emt 0:00:37]} Bf4 {[%emt 0:00:00]} 35. Kc2 {[%emt 0:05:24]} Kg7 {[%emt 0:00:00]} 36. Kb3 {[%emt 0:01:21]} Bc7 {[%emt 0:00:00]} 37. Ka4 {[%emt 0:01:26]} a6 {[%emt 0:00:17]} 38. b4 {[%emt 0:00:03]} cxb4 {[%emt 0:00:08]} 39. Kxb4 {[%emt 0:00:02]} Kg6 {[%emt 0:01:20]} 40. Kc5 {[%emt 0:00:02]} Kh5 {[%emt 0:01:36]} 41. Nd6 {[%emt 0:33:44]} Kxh4 {[%emt 0:30:13]} 42. Kc6 {[%emt 0:00:18]} Bb8 {[%emt 0:00:05]} 43. d4 {[%emt 0:11:29]} Ba7 {[%emt 0:02:44]} 44. d5 {[%emt 0:00:00]} exd5 {[%emt 0:00:00]} 45. Kxd5 {[%emt 0:00:00]} Kh3 {[%emt 0:00:00]} 46. Nxf7 {[%emt 0:00:00]} Kxh2 {[%emt 0:00:00]} 47. Ke4 {[%emt 0:00:00]} Kg3 {[%emt 0:00:00]} 48. Nd6 {[%emt 0:00:00]} Kf2 {[%emt 0:00:00]} 49. f4 {[%emt 0:00:00]} Bc5 {[%emt 0:00:00]} 50. Nc4 {[%emt 0:00:00]} Kg3 {[%emt 0:00:00]} 51. f5 {[%emt 0:00:00]} Kg4 {[%emt 0:00:00]} 52. a4 {[%emt 0:00:00]} Bb4 {[%emt 0:00:00]} 53. Ne3+ {[%emt 0:00:00]} Kg5 {[%emt 0:00:00]} 54. Nc4 {[%emt 0:00:00]} Bc3 {[%emt 0:00:00]} 55. Nb6 {[%emt 0:00:00]} Bb4 {[%emt 0:00:00]} 56. Nd5 {[%emt 0:00:00]} Bd2 {[%emt 0:00:00]} 57. Nc7 {[%emt 0:00:00]} a5 {[%emt 0:00:00]} 58. Ne6+ {[%emt 0:00:00]} Kg4 {[%emt 0:00:00]} 59. Ng7 {[%emt 0:00:00]} Bc1 {[%emt 0:00:00]} 60. Ne8 {[%emt 0:00:00]} Kg5 {[%emt 0:00:00]} 61. Ng7 {[%emt 0:00:00]} Kg4 {[%emt 0:00:00]} 62. Ne8 {[%emt 0:00:00]} Kg5 {[%emt 0:00:00]} 63. Nd6 {[%emt 0:00:00]} Ba3 {[%emt 0:00:00]} 64. Nf7+ {[%emt 0:00:00]} Kg4 {[%emt 0:00:00]} 65. Nd8 {[%emt 0:00:00]} Bb4 {[%emt 0:00:00]} 66. Nc6 {[%emt 0:00:00]} Bc3 {[%emt 0:00:00]} 67. Ne7 {[%emt 0:00:00]} Kg5 {[%emt 0:00:00]} 68. Kd3 {[%emt 0:00:00]} Bb4 {[%emt 0:00:00]} 69. Nc6 {[%emt 0:00:00]} Be1 {[%emt 0:00:00]} (69... Kxf5 $2 70. Nxb4 Kg5 71. Nc6 $18) 70. Ke4 {[%emt 0:00:00]} Bc3 {[%emt 0:00:00]} 71. Nd8 {[%emt 0:00:00]} Bd2 {[%emt 0:00:40]} 72. Ne6+ {[%emt 0:00:00]} Kg4 {[%emt 0:00:46]} 73. Nf8 {[%emt 0:00:00]} Bb4 {[%emt 0:00:25]} 74. Ne6 {[%emt 0:00:00]} Bd2 {[%emt 0:00:19]} 75. Nd4 {[%emt 0:00:00]} Bc3 {[%emt 0:00:12]} 76. Nb3 {[%emt 0:00:00]} Bb4 {[%emt 0:00:11]} 77. Nc1 {[%emt 0:00:00]} Bd2 {[%emt 0:00:55]} 78. Nd3 {[%emt 0:00:00]} Kg5 {[%emt 0:00:45]} 79. Nb2 {[%emt 0:00:00]} Bc3 {[%emt 0:00:11]} 80. Nc4 {[%emt 0:00:00]} Bb4 {[%emt 0:00:09]} 81. Ne3 {[%emt 0:00:00]} Bc5 {[%emt 0:01:09]} 82. Nd5 {[%emt 0:00:00]} Bd6 {[%emt 0:00:40]} 83. Ne3 {[%emt 0:00:00]} Bc5 {[%emt 0:00:00]} 84. Nc2 {[%emt 0:00:00]} Bf2 {[%emt 0:00:41]} 85. Na3 {[%emt 0:00:00]} Bc5 {[%emt 0:00:15]} 86. Nb5 {[%emt 0:00:00]} Bb4 {[%emt 0:00:08]} 87. Nd4 {[%emt 0:00:00]} Bc3 {[%emt 0:00:19]} 88. Ne6+ {[%emt 0:00:00]} Kg4 {[%emt 0:00:05]} 89. Nc7 {[%emt 0:00:00]} Kg5 {[%emt 0:00:07]} 90. Nd5 {[%emt 0:00:00]} Bd2 {[%emt 0:01:36]} 91. Nb6 {[%emt 0:00:00]} Bc3 {[%emt 0:00:25]} 92. Nc4 {[%emt 0:00:00]} Bb4 {[%emt 0:01:18]} 93. Nb2 {[%emt 0:00:00]} Bc3 {[%emt 0:00:52]} 94. Nd3 {[%emt 0:00:00]} Bd2 {[%emt 0:00:12]} 95. Nf2 {[%emt 0:00:00]} Be1 {[%emt 0:00:26]} 96. Nh3+ {[%emt 0:00:00]} Kg4 {[%emt 0:00:13]} 97. Nf4 {[%emt 0:00:00]} Kg5 {[%emt 0:00:21]} 98. Nd5 {[%emt 0:00:00]} Bd2 {[%emt 0:00:40]} 99. Nb6 {[%emt 0:00:00]} Bc3 {[%emt 0:00:45]} 100. Nd5 {[%emt 0:00:00]} 1/2-1/2